lending/lending_fUSD_20250122
["ID","MTS","AMOUNT","RATE_DAILY","PERIOD"]
[349966452,1737540640880,-500.0,0.0001944,2]
[349966453,1737540640891,-500.0,0.0001944,2]
[349966454,1737540640901,-500.0,0.0001944,2]
[349966455,1737540640911,-500.0,0.0001944,2]
[349966456,1737540640922,-500.0,0.0001944,2]
[349966457,1737540640933,-500.0,0.0001944,2]
[349966458,1737540640944,-1036.77,0.0001944,2]
[349966459,1737540640955,-500.0,0.0001944,2]
[349966460,1737540640967,-573.73,0.0001944,2]
[349966461,1737540640977,-500.0,0.0001944,2]
[349966462,1737540640987,-154.704157,0.0001944,2]
[349966463,1737540640998,-500.0,0.0001944,2]
[349966464,1737540641008,-500.0,0.0001944,2]
[349966465,1737540641018,-725.29,0.0001944,2]
[349966466,1737540641029,-509.51363151,0.0001944,2]
[349966467,1737540641041,-500.0,0.0001944,2]
[349966468,1737540641051,-500.0,0.0001944,2]
[349966469,1737540641062,-500.0,0.0001944,2]
[349966470,1737540641072,-500.0,0.0001944,2]
[349966471,1737540641083,-500.0,0.0001944,2]
[349966472,1737540641093,-500.0,0.0001944,2]
[349966473,1737540641103,-500.0,0.0001944,2]
[349966474,1737540641113,-500.0,0.0001944,2]
[349966475,1737540641124,-508.61708301,0.0001944,2]
[349966476,1737540641133,-500.0,0.0001944,2]
[349966477,1737540641142,-587.66,0.0001944,2]
[349966478,1737540641153,-500.0,0.0001944,2]
[349966479,1737540641163,-856.91,0.0001944,2]
[349966480,1737540641174,-791.85,0.0001944,2]
[349966481,1737540641183,-500.0,0.0001944,2]
[349966482,1737540641194,-500.0,0.0001944,2]
[349966483,1737540641204,-500.0,0.0001944,2]
[349966484,1737540641214,-500.0,0.0001944,2]
[349966485,1737540641225,-500.0,0.0001944,2]
[349966486,1737540641235,-500.0,0.0001944,2]
[349966487,1737540641244,-500.0,0.0001944,2]
[349966488,1737540641255,-500.87731238,0.0001944,2]
[349966489,1737540641266,-500.0,0.0001944,2]
[349966490,1737540641277,-500.0,0.0001944,2]
[349966491,1737540641288,-529.15,0.0001944,2]
[349966492,1737540641297,-500.0,0.0001944,2]
[349966493,1737540641307,-500.0,0.0001944,2]
[349966494,1737540641315,-500.0,0.0001944,2]
[349966495,1737540641325,-500.0,0.0001944,2]
[349966496,1737540641334,-804.07,0.0001944,2]
[349966497,1737540641343,-251.68702713,0.0001944,2]
[349966498,1737540641352,-500.0,0.0001944,2]
[349966499,1737540641362,-500.0,0.0001944,2]
[349966500,1737540641371,-509.75599339,0.0001944,2]
[349966501,1737540641380,-500.0,0.0001944,2]
[349966502,1737540641390,-500.0,0.0001944,2]
[349966503,1737540641399,-500.0,0.0001944,2]
[349966504,1737540641408,-500.0,0.0001944,2]
[349966505,1737540641417,-500.0,0.0001944,2]
[349966506,1737540641426,-801.82,0.0001944,2]
[349966507,1737540641436,-655.77,0.0001944,2]
[349966508,1737540641445,-500.0,0.0001944,2]
[349966509,1737540641456,-500.0,0.0001944,2]
[349966510,1737540641466,-995.94,0.0001944,2]
[349966511,1737540641476,-606.45,0.0001944,2]
[349966512,1737540641485,-500.0,0.0001944,2]
[349966513,1737540641496,-1409.55,0.0001944,2]
[349966514,1737540641504,-716.96,0.0001944,2]
[349966515,1737540641514,-500.0,0.0001944,2]
[349966516,1737540641523,-500.0,0.0001944,2]
[349966517,1737540641535,-500.0,0.0001944,2]
[349966518,1737540641545,-2078.36,0.0001944,2]
[349966519,1737540641554,-500.0,0.0001944,2]
[349966520,1737540641564,-500.0,0.0001944,2]
[349966521,1737540641573,-1020.68,0.0001944,2]
[349966522,1737540641582,-1080.35,0.0001944,2]
[349966523,1737540641592,-500.0,0.0001944,2]
[349966524,1737540641601,-500.0,0.0001944,2]
[349966525,1737540641610,-2030.39,0.0001944,2]
[349966526,1737540641619,-500.0,0.0001944,2]
[349966527,1737540641628,-1601.2,0.0001944,2]
[349966528,1737540641637,-736.51,0.0001944,2]
[349966529,1737540641646,-517.12640578,0.0001944,2]
[349966530,1737540641655,-500.0,0.0001944,2]
[349966531,1737540641664,-1648.0,0.0001944,2]
[349966532,1737540641674,-500.0,0.0001944,2]
[349966533,1737540641683,-500.0,0.0001944,2]
[349966534,1737540641693,-500.0,0.0001944,2]
[349966535,1737540641703,-500.0,0.0001944,2]
[349966536,1737540641712,-500.0,0.0001944,2]
[349966537,1737540641721,-500.0,0.0001944,2]
[349966538,1737540641730,-619.35,0.0001944,2]
[349966539,1737540641739,-756.04,0.0001944,2]
[349966540,1737540641748,-1547.06,0.0001944,2]
[349966541,1737540641757,-500.0,0.0001944,2]
[349966542,1737540641766,-1741.58,0.0001944,2]
[349966543,1737540641775,-505.01,0.0001944,2]
[349966544,1737540641785,-3644.17,0.0001944,2]
[349966545,1737540641794,-787.05,0.0001944,2]
[349966546,1737540641805,-500.0,0.0001944,2]
[349966547,1737540641814,-1109.56,0.0001944,2]
[349966548,1737540641823,-500.0,0.0001944,2]
[349966549,1737540641832,-500.0,0.0001944,2]
[349966550,1737540641841,-500.0,0.0001944,2]
[349966551,1737540641851,-1436.75,0.0001944,2]
[349966552,1737540641861,-500.0,0.0001944,2]
[349966553,1737540641870,-500.0,0.0001944,2]
[349966554,1737540641879,-500.0,0.0001944,2]
[349966555,1737540641888,-500.0,0.0001944,2]
[349966556,1737540641897,-1023.67,0.0001944,2]
[349966557,1737540641906,-500.0,0.0001944,2]
[349966558,1737540641916,-239.95719577,0.0001944,2]
[349966559,1737540641925,-500.0,0.0001944,2]
[349966560,1737540641933,-877.13,0.0001944,2]
[349966561,1737540641943,-2446.43,0.0001944,2]
[349966562,1737540641952,-500.0,0.0001944,2]
[349966563,1737540641961,-1084.02,0.0001944,2]
[349966564,1737540641971,-500.0,0.0001944,2]
[349966565,1737540641980,-719.88,0.0001944,2]
[349966566,1737540641989,-500.0,0.0001944,2]
[349966567,1737540641998,-504.78802334,0.0001944,2]
[349966568,1737540642007,-500.0,0.0001944,2]
[349966569,1737540642016,-1525.4,0.0001944,2]
[349966570,1737540642026,-566.9,0.0001944,2]
[349966571,1737540642034,-645.84,0.0001944,2]
[349966572,1737540642044,-1063.0,0.0001944,2]
[349966573,1737540642053,-500.0,0.0001944,2]
[349966574,1737540642063,-3701.78,0.0001944,2]
[349966575,1737540642072,-500.0,0.0001944,2]
[349966576,1737540642081,-803.84,0.0001944,2]
[349966577,1737540642091,-499.89382796,0.0001944,2]
[349966578,1737540642101,-2248.46,0.0001944,2]
[349966579,1737540642110,-500.0,0.0001944,2]
[349966580,1737540642121,-1421.98,0.0001944,2]
[349966581,1737540642131,-500.0,0.0001944,2]
[349966582,1737540642141,-500.0,0.0001944,2]
[349966583,1737540642152,-500.0,0.0001944,2]
[349966584,1737540642162,-508.91499843,0.0001944,2]
[349966585,1737540642172,-500.0,0.0001944,2]
[349966586,1737540642183,-500.0,0.0001944,2]
[349966587,1737540642194,-884.57,0.0001944,2]
[349966588,1737540642204,-504.44544008,0.0001944,2]
[349966589,1737540642213,-500.0,0.0001944,2]
[349966590,1737540642223,-1510.95,0.0001944,2]
[349966591,1737540642232,-500.0,0.0001944,2]
[349966592,1737540642241,-2106.63,0.0001944,2]
[349966593,1737540642251,-500.0,0.0001944,2]
[349966594,1737540642260,-500.0,0.0001944,2]
[349966595,1737540642270,-3108.21,0.0001944,2]
[349966596,1737540642281,-741.11,0.0001944,2]
[349966597,1737540642291,-500.0,0.0001944,2]
[349966598,1737540642300,-2339.65,0.0001944,2]
[349966599,1737540642309,-1044.82,0.0001944,2]
[349966600,1737540642319,-500.0,0.0001944,2]
[349966601,1737540642328,-645.04851655,0.0001944,2]
[349966602,1737540642337,-2293.73,0.0001944,2]
[349966603,1737540642347,-500.0,0.0001944,2]
[349966604,1737540642356,-502.00082423,0.0001944,2]
[349966605,1737540642365,-500.0,0.0001944,2]
[349966606,1737540642374,-500.0,0.0001944,2]
[349966607,1737540642383,-500.0,0.0001944,2]
[349966608,1737540642393,-500.0,0.0001944,2]
[349966609,1737540642402,-612.9136138,0.0001944,2]
[349966610,1737540642411,-983.86,0.0001944,2]
[349966611,1737540642420,-500.0,0.0001944,2]
[349966612,1737540642429,-502.79418284,0.0001944,2]
[349966613,1737540642438,-500.0,0.0001944,2]
[349966614,1737540642447,-500.0,0.0001944,2]
[349966615,1737540642459,-500.0,0.0001944,2]
[349966616,1737540642469,-759.65,0.0001944,2]
[349966617,1737540642478,-507.13482335,0.0001944,2]
[349966618,1737540642487,-1127.53,0.0001944,2]
[349966619,1737540642497,-500.0,0.0001944,2]
[349966620,1737540642507,-500.0,0.0001944,2]
[349966621,1737540642516,-500.0,0.0001944,2]
[349966622,1737540642525,-500.0,0.0001944,2]
[349966623,1737540642535,-528.37,0.0001944,2]
[349966624,1737540642545,-510.94441253,0.0001944,2]
[349966625,1737540642554,-500.0,0.0001944,2]
[349966626,1737540642564,-500.0,0.0001944,2]
[349966627,1737540642573,-500.0,0.0001944,2]
[349966628,1737540642583,-500.0,0.0001944,2]
[349966629,1737540642592,-423.06456235,0.0001944,2]
[349966630,1737540642601,-3748.63,0.0001944,2]
[349966631,1737540642610,-500.0,0.0001944,2]
[349966632,1737540642619,-500.0,0.0001944,2]
[349966633,1737540642628,-2267.36,0.0001944,2]
[349966634,1737540642637,-500.0,0.0001944,2]
[349966635,1737540642647,-500.0,0.0001944,2]
[349966636,1737540642655,-500.0,0.0001944,2]
[349966637,1737540642664,-1360.93,0.0001944,2]
[349966638,1737540642674,-500.0,0.0001944,2]
[349966639,1737540642683,-500.0,0.0001944,2]
[349966640,1737540642692,-500.0,0.0001944,2]
[349966641,1737540642703,-644.83,0.0001944,2]
[349966643,1737540642712,-726.62,0.0001944,2]
[349966644,1737540642721,-612.88,0.0001944,2]
[349966645,1737540642730,-501.94,0.0001944,2]
[349966646,1737540642740,-500.0,0.0001944,2]
[349966648,1737540642749,-500.0,0.0001944,2]
[349966649,1737540642758,-685.28,0.0001944,2]
[349966650,1737540642767,-500.0,0.0001944,2]
[349966651,1737540642778,-500.0,0.0001944,2]
[349966652,1737540642788,-500.0,0.0001944,2]
[349966654,1737540642798,-1085.66,0.0001944,2]
[349966657,1737540642807,-564.68,0.0001944,2]
[349966659,1737540642817,-641.26,0.0001944,2]
[349966661,1737540642826,-539.19,0.0001944,2]
[349966663,1737540642836,-500.0,0.0001944,2]
[349966665,1737540642845,-500.0,0.0001944,2]
[349966667,1737540642854,-500.0,0.0001944,2]
[349966670,1737540642863,-1392.41,0.0001944,2]
[349966672,1737540642873,-1687.59,0.0001944,2]
[349966674,1737540642882,-500.0,0.0001944,2]
[349966675,1737540642891,-500.0,0.0001944,2]
[349966676,1737540642900,-500.0,0.0001944,2]
[349966677,1737540642910,-500.0,0.0001944,2]
[349966678,1737540642919,-327.20602335,0.00019441,2]
[349966679,1737540642928,-500.0,0.00019441,2]
[349966680,1737540642937,-500.0,0.00019441,2]
[349966681,1737540642946,-500.0,0.00019441,2]
[349966682,1737540642956,-500.0,0.00019441,2]
[349966683,1737540642965,-500.0,0.00019441,2]
[349966684,1737540642974,-500.0,0.00019441,2]
[349966685,1737540642983,-560.0,0.00019441,2]
[349966686,1737540642993,-500.0,0.00019441,2]
[349966687,1737540643002,-500.0,0.00019441,2]
[349966688,1737540643011,-500.0,0.00019441,2]
[349966689,1737540643020,-500.0,0.00019441,2]
[349966690,1737540643030,-500.0,0.00019441,2]
[349966691,1737540643039,-500.0,0.00019441,2]
[349966692,1737540643049,-500.0,0.00019441,2]
[349966693,1737540643058,-590.26076034,0.00019441,2]
[349966694,1737540643067,-500.0,0.00019441,2]
[349966695,1737540643076,-564.26,0.00019441,2]
[349966696,1737540643085,-522.81,0.00019441,2]
[349966697,1737540643095,-500.0,0.00019441,2]
[349966698,1737540643104,-500.0,0.00019441,2]
[349966699,1737540643113,-500.0,0.00019441,2]
[349966700,1737540643122,-500.0,0.00019441,2]
[349966701,1737540643132,-514.73330224,0.00019441,2]
[349966702,1737540643142,-417.79616379,0.00019441,2]
[349966703,1737540643152,-500.0,0.00019441,2]
[349966704,1737540643161,-500.0,0.00019441,2]
[349966705,1737540643170,-500.0,0.00019441,2]
[349966706,1737540643180,-500.0,0.00019441,2]
[349966707,1737540643189,-500.0,0.00019441,2]
[349966708,1737540643198,-500.0,0.00019441,2]
[349966709,1737540643207,-616.55150993,0.00019441,2]
[349966710,1737540643216,-500.0,0.00019441,2]
[349966711,1737540643225,-333.19629098,0.00019441,2]
[349966712,1737540643234,-500.0,0.00019441,2]
[349966716,1737540643383,-150.64022147,0.00019441,2]
[349966718,1737540643393,-500.0,0.00019441,2]
[349966720,1737540643403,-500.0,0.00019441,2]
[349966721,1737540643412,-500.0,0.00019441,2]
[349966722,1737540643422,-500.0,0.00019441,2]
[349966723,1737540643432,-500.0,0.00019441,2]
[349966724,1737540643442,-500.0,0.00019441,2]
[349966725,1737540643452,-500.0,0.00019441,2]
[349966726,1737540643464,-500.0,0.00019441,2]
[349966727,1737540643474,-500.0,0.00019441,2]
[349966728,1737540643483,-585.01,0.00019441,2]
[349966729,1737540643492,-500.0,0.00019441,2]
[349966730,1737540643503,-500.0,0.00019441,2]
[349966731,1737540643512,-500.0,0.00019441,2]
[349966733,1737540643521,-500.0,0.00019441,2]
[349966734,1737540643531,-500.0,0.00019441,2]
[349966735,1737540643541,-500.0,0.00019441,2]
[349966736,1737540643550,-500.0,0.00019441,2]
[349966737,1737540643560,-500.0,0.00019441,2]
[349966738,1737540643569,-555.53064745,0.00019441,2]
[349966739,1737540643579,-500.0,0.00019441,2]
[349966740,1737540643588,-514.03,0.00019441,2]
[349966741,1737540643598,-747.15,0.00019441,2]
[349966742,1737540643607,-500.0,0.00019441,2]
[349966743,1737540643619,-500.0,0.00019441,2]
[349966744,1737540643628,-500.0,0.00019441,2]
[349966745,1737540643637,-500.0,0.00019441,2]
[349966746,1737540643647,-500.0,0.00019441,2]
[349966747,1737540643656,-500.0,0.00019441,2]
[349966748,1737540643666,-985.82,0.00019441,2]
[349966749,1737540643675,-500.0,0.00019441,2]
[349966750,1737540643684,-559.81,0.00019441,2]
[349966751,1737540643694,-500.0,0.00019441,2]
[349966752,1737540643703,-500.0,0.00019441,2]
[349966753,1737540643712,-680.04,0.00019441,2]
[349966754,1737540643722,-500.0,0.00019441,2]
[349966755,1737540643732,-500.0,0.00019441,2]
[349966756,1737540643741,-500.0,0.00019441,2]
[349966757,1737540643751,-756.85,0.00019441,2]
[349966758,1737540643760,-500.0,0.00019441,2]
[349966759,1737540643769,-520.45,0.00019441,2]
[349966760,1737540643779,-500.0,0.00019441,2]
[349966761,1737540643789,-500.0,0.00019441,2]
[349966762,1737540643798,-666.38,0.00019441,2]
[349966763,1737540643807,-500.0,0.00019441,2]
[349966764,1737540643816,-500.0,0.00019441,2]
[349966765,1737540643825,-524.6,0.00019441,2]
[349966766,1737540643834,-700.02,0.00019441,2]
[349966767,1737540643843,-500.0,0.00019441,2]
[349966768,1737540643852,-501.72553911,0.00019441,2]
[349966769,1737540643862,-500.0,0.00019441,2]
[349966770,1737540643871,-500.0,0.00019441,2]
[349966771,1737540643881,-500.0,0.00019441,2]
[349966772,1737540643890,-500.0,0.00019441,2]
[349966773,1737540643899,-500.0,0.00019441,2]
[349966774,1737540643911,-500.0,0.00019441,2]
[349966775,1737540643920,-500.0,0.00019441,2]
[349966776,1737540643930,-500.0,0.00019441,2]
[349966777,1737540643940,-883.64,0.00019441,2]
[349966778,1737540643949,-500.0,0.00019441,2]
[349966779,1737540643958,-500.0,0.00019441,2]
[349966780,1737540643968,-500.0,0.00019441,2]
[349966781,1737540643977,-531.28,0.00019441,2]
[349966782,1737540643988,-694.97,0.00019441,2]
[349966783,1737540643997,-500.0,0.00019441,2]
[349966784,1737540644006,-880.33,0.00019441,2]
[349966785,1737540644017,-772.05,0.00019441,2]
[349966786,1737540644026,-500.0,0.00019441,2]
[349966787,1737540644035,-958.39,0.00019441,2]
[349966788,1737540644044,-500.0,0.00019441,2]
[349966789,1737540644054,-500.0,0.00019441,2]
[349966790,1737540644063,-500.0,0.00019441,2]
[349966791,1737540644072,-500.0,0.00019441,2]
[349966792,1737540644081,-500.0,0.00019441,2]
[349966793,1737540644090,-500.0,0.00019441,2]
[349966794,1737540644099,-500.0,0.00019441,2]
[349966795,1737540644108,-500.0,0.00019441,2]
[349966796,1737540644116,-500.0,0.00019441,2]
[349966797,1737540644126,-500.0,0.00019441,2]
[349966798,1737540644135,-926.48,0.00019441,2]
[349966799,1737540644144,-739.74,0.00019441,2]
[349966800,1737540644154,-1016.61,0.00019441,2]
[349966801,1737540644163,-863.66,0.00019441,2]
[349966802,1737540644173,-500.0,0.00019441,2]
[349966803,1737540644182,-500.0,0.00019441,2]
[349966804,1737540644191,-500.0,0.00019441,2]
[349966805,1737540644200,-500.0,0.00019441,2]
[349966806,1737540644209,-500.0,0.00019441,2]
[349966807,1737540644218,-684.1,0.00019441,2]
[349966808,1737540644227,-500.0,0.00019441,2]
[349966809,1737540644236,-500.0,0.00019441,2]
[349966810,1737540644244,-783.89,0.00019441,2]
[349966811,1737540644253,-1891.18,0.00019441,2]
[349966812,1737540644262,-500.0,0.00019441,2]
[349966813,1737540644270,-2135.98,0.00019441,2]
[349966814,1737540644280,-500.0,0.00019441,2]
[349966815,1737540644289,-4371.9,0.00019441,2]
[349966816,1737540644297,-871.18,0.00019441,2]
[349966817,1737540644306,-7439.42,0.00019441,2]
[349966818,1737540644315,-500.0,0.00019441,2]
[349966819,1737540644326,-500.0,0.00019441,2]
[349966820,1737540644336,-1012.07,0.00019441,2]
[349966821,1737540644346,-500.0,0.00019441,2]
[349966822,1737540644354,-500.0,0.00019441,2]
[349966823,1737540644364,-573.57,0.00019441,2]
[349966824,1737540644373,-828.83,0.00019441,2]
[349966825,1737540644382,-500.0,0.00019441,2]
[349966826,1737540644391,-2274.94,0.00019441,2]
[349966827,1737540644400,-500.0,0.00019441,2]
[349966828,1737540644410,-929.42,0.00019441,2]
[349966829,1737540644420,-968.73,0.00019441,2]
[349966830,1737540644430,-500.0,0.00019441,2]
[349966831,1737540644442,-1292.71,0.00019441,2]
[349966832,1737540644454,-1425.14,0.00019441,2]
[349966833,1737540644464,-620.67,0.00019441,2]
[349966834,1737540644473,-500.0,0.00019441,2]
[349966835,1737540644483,-569.3,0.00019441,2]
[349966836,1737540644494,-1000.0,0.00019441,2]
[349966837,1737540644503,-500.0,0.00019441,2]
[349966838,1737540644512,-705.73,0.00019441,2]
[349966839,1737540644521,-500.0,0.00019441,2]
[349966840,1737540644532,-2006.89,0.00019441,2]
[349966841,1737540644542,-500.0,0.00019441,2]
[349966842,1737540644551,-1665.09,0.00019441,2]
[349966843,1737540644561,-1069.91,0.00019441,2]
[349966844,1737540644570,-770.95,0.00019441,2]
[349966845,1737540644580,-1082.57,0.00019441,2]
[349966846,1737540644590,-500.0,0.00019441,2]
[349966847,1737540644599,-505.64309224,0.00019442,2]
[349966848,1737540644608,-360.1567603,0.00019442,2]
[349966849,1737540644618,-500.0,0.00019442,2]
[349966850,1737540644627,-500.0,0.00019442,2]
[349966851,1737540644637,-500.0,0.00019442,2]
[349966852,1737540644646,-393.70505993,0.00019442,2]
[349966853,1737540644656,-849.08,0.00019442,2]
[349966854,1737540644665,-500.0,0.00019442,2]
[349966855,1737540644675,-500.0,0.00019442,2]
[349966856,1737540644684,-500.0,0.00019442,2]
[349966857,1737540644694,-500.0,0.00019442,2]
[349966858,1737540644710,-790.56,0.00019442,2]
[349966859,1737540644725,-500.0,0.00019442,2]
[349966860,1737540644736,-500.0,0.00019442,2]
[349966861,1737540644749,-500.0,0.00019442,2]
[349966862,1737540644762,-500.0,0.00019442,2]
[349966863,1737540644776,-500.0,0.00019442,2]
[349966864,1737540644790,-173.6,0.00019445,2]
[349966865,1737540644803,-518.63264604,0.00019473,2]
[349966866,1737540644814,-152.26547187,0.00019473,2]
[349966867,1737540644827,-500.0,0.00019473,2]
[349966868,1737540644839,-228.0,0.000195,4]
[349966869,1737540644852,-339.52,0.00019577,2]
[349966870,1737540644866,-4143.9329,0.00019615,2]
[349966871,1737540644879,-5000.0,0.00019615,2]
[349966872,1737540644893,-2095.57567719,0.00019624,2]
[349966873,1737540644906,-400.93003349,0.00019625,2]
[349966874,1737540644919,-1574.0515126,0.00019694,2]
[349966875,1737540644932,-500.0,0.00019713,2]
[349966876,1737540644945,-2380.59,0.00019713,2]
[349966877,1737540644959,-772.55,0.00019713,2]
[349966878,1737540644971,-585.55,0.00019713,2]
[349966879,1737540644983,-1371.02,0.00019713,2]
[349966880,1737540644997,-535.47,0.00019713,2]
[349966881,1737540645011,-1469.36,0.00019713,2]
[349966882,1737540645023,-1053.53,0.00019713,2]
[349966883,1737540645034,-500.0,0.00019713,2]
[349966884,1737540645046,-500.0,0.00019713,2]
[349966885,1737540645058,-862.92,0.00019713,2]
[349966886,1737540645073,-1005.32,0.00019713,2]
[349966887,1737540645083,-2519.89,0.00019713,2]
[349966888,1737540645094,-553.57,0.00019713,2]
[349966889,1737540645105,-1043.32,0.00019713,2]
[349966890,1737540645117,-1683.16,0.00019713,2]
[349966891,1737540645131,-500.0,0.00019713,2]
[349966892,1737540645142,-1970.43,0.00019713,2]
[349966893,1737540645153,-820.53,0.00019713,2]
[349966894,1737540645164,-500.0,0.00019713,2]
[349966895,1737540645176,-898.9,0.00019713,2]
[349966896,1737540645187,-195.14255704,0.00019713,2]
[349966897,1737540645199,-500.0,0.00019713,2]
[349966898,1737540645211,-2767.93,0.00019713,2]
[349966899,1737540645221,-934.16,0.00019713,2]
[349966900,1737540645234,-1003.12,0.00019713,2]
[349966901,1737540645245,-500.0,0.00019713,2]
[349966902,1737540645255,-902.2,0.00019713,2]
[349966903,1737540645265,-594.97,0.00019713,2]
[349966904,1737540645275,-500.0,0.00019713,2]
[349966905,1737540645286,-765.96,0.00019713,2]
[349966906,1737540645296,-500.0,0.00019713,2]
[349966907,1737540645307,-2979.93,0.00019713,2]
[349966908,1737540645319,-500.0,0.00019713,2]
[349966909,1737540645330,-1936.34,0.00019713,2]
[349966910,1737540645342,-500.0,0.00019713,2]
[349966911,1737540645353,-500.0,0.00019714,2]
[349966912,1737540645364,-500.0,0.00019714,2]
[349966913,1737540645378,-500.0,0.00019714,2]
[349966914,1737540645389,-500.0,0.00019714,2]
[349966915,1737540645401,-500.0,0.00019714,2]
[349966916,1737540645413,-500.0,0.00019714,2]
[349966917,1737540645425,-500.0,0.00019714,2]
[349966918,1737540645436,-500.0,0.00019714,2]
[349966919,1737540645448,-500.0,0.00019714,2]
[349966920,1737540645462,-500.0,0.00019714,2]
[349966921,1737540645475,-500.0,0.00019714,2]
[349966922,1737540645486,-500.0,0.00019714,2]
[349966923,1737540645499,-500.0,0.00019714,2]
[349966924,1737540645511,-500.0,0.00019714,2]
[349966925,1737540645523,-500.0,0.00019714,2]
[349966926,1737540645537,-500.0,0.00019714,2]
[349966927,1737540645548,-500.0,0.00019714,2]
[349966928,1737540645560,-325.98163605,0.00019714,2]
[349966929,1737540645572,-500.2930666,0.00019714,2]
[349966930,1737540645583,-500.0,0.00019714,2]
[349966931,1737540645594,-500.0,0.00019714,2]
[349966932,1737540645606,-232.69361128,0.00019714,2]
[349966933,1737540645617,-500.0,0.00019714,2]
[349966934,1737540645628,-500.0,0.00019714,2]
[349966935,1737540645640,-382.49000001,0.00019714,2]
[349966936,1737540645651,-500.0,0.00019714,2]
[349966937,1737540645663,-790.78,0.00019714,2]
[349966938,1737540645674,-289.42440183,0.00019714,2]
[349966939,1737540645686,-510.06677776,0.00019714,2]
[349966940,1737540645697,-592.64,0.00019714,2]
[349966941,1737540645709,-473.55882306,0.00019714,2]
[349966942,1737540645720,-794.7,0.00019714,2]
[349966943,1737540645732,-500.0,0.00019714,2]
[349966944,1737540645743,-500.0,0.00019714,2]
[349966945,1737540645755,-500.0,0.00019714,2]
[349966946,1737540645766,-500.0,0.00019714,2]
[349966947,1737540645778,-504.21299395,0.00019714,2]
[349966948,1737540645789,-586.17,0.00019714,2]
[349966949,1737540645800,-500.0,0.00019714,2]
[349966950,1737540645811,-500.0,0.00019714,2]
[349966951,1737540645825,-197.13401883,0.00019714,2]
[349966952,1737540645837,-500.0,0.00019714,2]
[349966953,1737540645849,-200.0,0.00019714,2]
[349966954,1737540645862,-500.0,0.00019714,2]
[349966955,1737540645875,-500.0,0.00019714,2]
[349966956,1737540645887,-500.0,0.00019714,2]
[349966957,1737540645899,-500.0,0.00019714,2]
[349966958,1737540645911,-500.0,0.00019714,2]
[349966959,1737540645923,-500.0,0.00019714,2]
[349966960,1737540645935,-500.0,0.00019714,2]
[349966961,1737540645947,-500.0,0.00019714,2]
[349966962,1737540645958,-524.72915458,0.00019714,2]
[349966963,1737540645970,-500.0,0.00019714,2]
[349966964,1737540645981,-500.0,0.00019714,2]
[349966965,1737540645994,-500.0,0.00019714,2]
[349966966,1737540646007,-500.0,0.00019714,2]
[349966967,1737540646018,-742.15,0.00019714,2]
[349966968,1737540646030,-500.0,0.00019714,2]
[349966969,1737540646041,-500.0,0.00019714,2]
[349966970,1737540646053,-500.0,0.00019714,2]
[349966971,1737540646064,-500.0,0.00019714,2]